bitfinex-derivatives/quotes_ETHF0:USTF0_20240917
["timestamp","ask_amount","ask_price","bid_price","bid_amount"]
[1726602255874,3.2078,2350.9,2350.6,0.81711]
[1726602256175,3.2078,2350.9,2350.6,0.3918]
[1726602256374,3.2078,2350.9,2350.6,0.81711]
[1726602256763,4.87597521,2350.9,2350.6,0.3918]
[1726602256966,3.2078,2350.9,2350.6,0.81711]
[1726602257166,3.2078,2350.9,2350.6,0.3918]
[1726602257473,5.30123521,2350.9,2350.6,0.3918]
[1726602257872,0.42532,2350.6,2350.2,0.42538]
[1726602258069,3.2078,2350.6,2350.2,0.4193]
[1726602258275,3.2078,2350.6,2350.2,0.84468]
[1726602258276,3.63312,2350.6,2350.2,0.84468]
[1726602258575,2.06267521,2350.7,2350.2,0.84468]
[1726602258576,2.06267521,2350.7,2350.2,0.4193]
[1726602258767,0.3945,2350.7,2350.4,0.42534]
[1726602258974,1.66817521,2350.8,2350.6,0.4253]
[1726602259172,0.42528,2350.8,2350.5,0.42533]
[1726602259474,1.66817521,2350.8,2350.5,0.42533]
[1726602259977,2.09345521,2350.8,2350.5,0.42533]
[1726602260580,1.66817521,2350.9,2350.5,4.2544]
[1726602260771,1.66817521,2351.0,2350.8,0.42527]
[1726602261164,3.2078,2351.0,2350.6,0.8175]
[1726602261482,1.66817521,2351.0,2350.6,0.8175]
[1726602261670,1.66817521,2351.0,2350.8,0.42527]
[1726602262174,1.66817521,2351.0,2350.7,0.4144]
[1726602262369,2.06267521,2351.1,2350.9,0.42525]
[1726602262572,1.66817521,2351.0,2350.9,0.42525]
[1726602263373,1.66817521,2351.2,2351.1,0.42521]
[1726602263581,1.66817521,2351.3,2351.1,0.42521]
[1726602263767,1.66817521,2351.3,2351.2,0.4252]
[1726602264379,1.66817521,2351.3,2351.1,0.42521]
[1726602264681,1.66817521,2351.3,2350.9,0.42525]
[1726602264682,2.09338521,2351.2,2350.9,0.42525]
[1726602265380,2.09338521,2351.2,2350.7,0.4144]
[1726602265678,1.66817521,2351.2,2350.7,0.4144]
[1726602265879,2.09338521,2351.2,2350.9,0.42525]
[1726602266073,2.09338521,2351.2,2351.0,0.42523]
[1726602266273,1.66817521,2351.2,2351.0,0.42523]
[1726602267475,1.66496224,2351.2,2351.1,0.42522]
[1726602267679,1.66496224,2351.2,2351.0,0.42523]
[1726602267978,1.66496224,2351.2,2350.7,4.68544]
[1726602267979,0.42525,2351.0,2350.7,0.4144]
[1726602268175,0.42526,2350.9,2350.7,0.83968]
[1726602268381,0.42526,2350.9,2350.7,0.4144]
[1726602268382,1.66496224,2350.9,2350.7,0.4144]
[1726602268677,2.09023224,2350.9,2350.7,0.4144]
[1726602268983,2.09023224,2350.9,2350.7,0.83969]
[1726602269579,2.63093361,2351.0,2350.5,4.60433]
[1726602269580,2.09024224,2350.8,2350.5,4.60433]
[1726602269783,1.66496224,2350.7,2350.5,0.42533]
[1726602270077,1.66496224,2350.7,2350.3,0.3919]
[1726602270078,1.66496224,2350.6,2350.3,0.3919]
[1726602270583,1.66496224,2350.6,2350.2,0.3994]
[1726602270584,5.29809224,2350.5,2350.2,0.82478]
[1726602270783,1.66496224,2350.4,2350.2,0.82478]
[1726602271079,2.09032224,2350.4,2350.0,4.179]
[1726602271281,1.66496224,2350.3,2350.1,0.4254]
[1726602271586,2.05296224,2350.4,2349.9,0.409]
[1726602271794,1.66496224,2350.4,2350.2,0.42537]
[1726602273180,1.66496224,2350.4,2350.3,0.42537]
[1726602273383,1.66496224,2350.5,2350.4,0.42535]
[1726602273579,1.66496224,2350.5,2350.3,0.42536]
[1726602273982,1.66496224,2350.4,2350.3,0.42536]
[1726602274183,1.66496224,2350.5,2350.3,0.42536]
[1726602275082,1.66496224,2350.4,2350.3,0.42536]
[1726602275289,1.66496224,2350.5,2350.3,0.42536]
[1726602275985,1.66496224,2350.5,2350.0,3.2078]
[1726602275986,1.66496224,2350.5,2350.4,0.42535]
[1726602276786,1.66496224,2350.6,2350.5,0.42533]
[1726602276975,1.66496224,2350.7,2350.6,0.81961]
[1726602277178,1.66496224,2350.8,2350.6,0.81961]
[1726602277384,1.66496224,2350.8,2350.7,0.42529]
[1726602277883,1.66496224,2350.9,2350.8,0.42528]
[1726602278087,1.66496224,2351.0,2350.9,0.42526]
[1726602279490,1.66496224,2351.0,2350.6,3.6021]
[1726602279691,1.66496224,2351.0,2350.7,0.42529]
[1726602279885,6.25165361,2351.1,2350.6,3.6021]
[1726602279886,2.09022224,2350.9,2350.6,3.6021]
[1726602280086,1.66496224,2350.9,2350.6,4.0274]
[1726602280484,0.4253,2350.7,2350.4,0.42534]
[1726602280688,1.11050717,2350.7,2350.3,0.32128794]
[1726602280878,1.11050717,2350.7,2350.2,4.67306]
[1726602280879,1.11050717,2350.7,2350.6,0.42531]
[1726602281087,1.11050717,2350.8,2350.6,0.42531]
[1726602281387,1.11050717,2350.8,2350.7,0.42529]
[1726602281991,1.11050717,2350.8,2350.6,0.3842]
[1726602282186,1.53578717,2350.8,2350.6,0.3842]
[1726602282387,1.11050717,2350.7,2350.5,0.42533]
[1726602282593,1.53579717,2350.7,2350.4,0.42533]
[1726602282795,1.53579717,2350.7,2350.3,3.592]
[1726602282796,1.11050717,2350.6,2350.3,3.592]
[1726602282991,1.66496224,2350.7,2350.5,0.42533]
[1726602282992,1.11050717,2350.7,2350.5,0.42533]
[1726602283193,1.11050717,2350.6,2350.5,0.42533]
[1726602284089,2.77546941,2350.7,2350.5,0.42533]
[1726602284392,1.11050717,2350.6,2350.5,0.42533]
[1726602284598,1.11050717,2350.7,2350.5,0.42532]
[1726602284784,1.11050717,2350.6,2350.5,0.42532]
[1726602284984,1.11050717,2350.8,2350.7,0.42529]
[1726602285587,1.11050717,2350.8,2350.7,0.82769]
[1726602285994,1.1110731,2350.8,2350.7,0.4024]
[1726602286191,1.1110731,2350.8,2350.7,0.82769]
[1726602287102,1.1110731,2350.8,2350.7,0.4024]
[1726602287400,1.11117506,2350.8,2350.7,0.82768]
[1726602287692,1.66496224,2350.8,2350.7,0.82768]
[1726602288489,1.11143957,2350.8,2350.7,4.03549]
[1726602288697,1.11143957,2350.8,2350.7,0.82769]
[1726602288897,1.66496224,2350.8,2350.7,0.82769]
[1726602290402,1.66789555,2350.8,2350.7,0.82769]
[1726602290703,1.66833499,2350.8,2350.7,0.82769]
[1726602290894,1.66830683,2350.8,2350.7,0.82769]
[1726602291200,1.66833084,2350.8,2350.7,0.82769]
[1726602291399,2.22423361,2350.9,2350.7,0.82768]
[1726602291593,2.22423361,2350.8,2350.7,0.82768]
[1726602291894,2.22423361,2350.9,2350.7,0.82768]
[1726602292099,2.22423361,2350.8,2350.7,0.82768]
[1726602292286,2.22517595,2350.9,2350.7,0.4024]
[1726602292486,2.22517595,2350.8,2350.7,0.82768]
[1726602292691,2.78029201,2350.9,2350.8,0.42528]
[1726602292692,2.22581661,2350.9,2350.8,0.42528]
[1726602292898,2.78029201,2351.0,2350.8,0.42528]
[1726602293293,3.20554201,2351.0,2350.7,0.82768]
[1726602293594,2.22683997,2350.8,2350.7,0.82769]
[1726602294591,3.20555201,2350.9,2350.7,0.82769]
[1726602294796,2.78029201,2350.9,2350.7,0.82769]
[1726602295199,2.78029201,2350.9,2350.8,0.42528]
[1726602295398,2.78029201,2350.9,2350.7,0.82769]
[1726602295604,0.42528,2350.8,2350.6,0.411]
[1726602295801,2.22740452,2350.7,2350.5,0.42532]
[1726602296098,5.54740452,2350.6,2350.4,3.63315]
[1726602296303,2.22740452,2350.5,2350.4,3.63315]
[1726602296496,5.98809201,2350.5,2350.0,0.21493342]
[1726602296696,1.67033195,2350.1,2350.0,0.4233]
[1726602296901,1.67033195,2350.1,2350.0,1.39361754]
[1726602297095,2.22710927,2350.1,2350.0,0.96820754]
[1726602297299,2.22710927,2350.2,2350.1,0.4254]
[1726602297505,2.22710927,2350.4,2350.3,0.42537]
[1726602298902,2.22710927,2350.4,2350.0,3.84016901]
[1726602299097,1.11353051,2350.1,2350.0,3.84016901]
[1726602299306,1.11353051,2350.1,2350.0,5.25689833]
[1726602299505,1.11353051,2350.1,2350.0,9.93751833]
[1726602299798,1.11353051,2350.1,2350.0,4.60141589]
[1726602299994,1.11353051,2350.1,2350.0,5.47326183]
[1726602300195,1.11353051,2350.1,2350.0,4.60141589]
[1726602300399,1.67029577,2350.2,2350.1,0.4254]
[1726602300604,2.22710927,2350.3,2350.1,0.4254]
[1726602301295,1.67059733,2350.2,2350.1,0.4254]
[1726602301511,2.22710927,2350.3,2350.1,0.4254]
[1726602301694,1.6701368,2350.2,2350.1,0.4254]
[1726602301998,1.6701368,2350.2,2350.1,0.97031912]
[1726602302206,1.6701368,2350.2,2350.1,0.54491912]
[1726602302503,2.22675092,2350.2,2350.0,0.84871]
[1726602302803,2.22664925,2350.1,2350.0,0.84871]
[1726602302999,2.22664925,2350.2,2350.1,0.4254]
[1726602303201,2.22664925,2350.3,2350.1,12.27191]
[1726602303403,1.66992497,2350.4,2350.3,0.42537]
[1726602303593,1.66992497,2350.5,2350.3,7.5744]
[1726602303792,1.66992497,2350.4,2350.3,0.42535]
[1726602304005,2.22664925,2350.5,2350.3,0.97022206]
[1726602304203,2.22664925,2350.5,2350.3,0.42537]
[1726602304204,2.61394925,2350.5,2350.3,0.42537]
[1726602304700,2.22664925,2350.5,2350.3,0.42536]
[1726602304901,2.22664925,2350.5,2350.1,3.2078]
[1726602305106,2.22664925,2350.5,2350.1,3.63319]
[1726602305107,1.67015592,2350.3,2350.1,3.63319]
[1726602305302,1.67015592,2350.2,2350.1,3.63319]
[1726602305904,1.67015592,2350.2,2350.1,4.17809639]
[1726602306602,1.67019037,2350.2,2350.1,17.75330639]
[1726602306805,1.67019037,2350.4,2350.3,0.42537]
[1726602307002,2.22664925,2350.5,2350.3,0.42537]
[1726602307505,2.22685002,2350.5,2350.4,0.42535]
[1726602307699,2.22682319,2350.5,2350.4,0.42535]
[1726602307903,2.22683928,2350.5,2350.4,0.42535]
[1726602308293,2.226858,2350.5,2350.3,0.42535]
[1726602308496,2.22684253,2350.4,2350.3,0.42535]
[1726602308700,2.22684253,2350.4,2350.1,6.5278]
[1726602308905,2.22684253,2350.4,2350.2,0.42537]
[1726602309098,2.22684253,2350.4,2350.1,6.5278]
[1726602309296,2.22684253,2350.4,2350.2,0.42538]
[1726602309796,2.22684253,2350.3,2350.2,0.42538]
[1726602310107,2.22684253,2350.4,2350.2,0.42538]
[1726602310803,2.2272712,2350.4,2350.3,0.42537]
[1726602311005,2.2272712,2350.4,2350.2,0.42538]
[1726602311408,2.2272712,2350.4,2350.1,3.63319]
[1726602311597,1.67057509,2350.2,2350.1,3.63319]
[1726602311804,1.67057509,2350.2,2350.1,0.54462795]
[1726602312103,3.20289201,2350.2,2349.9,0.4252]
[1726602312302,1.67067798,2350.0,2349.8,3.63325]
[1726602312498,1.67069205,2349.9,2349.6,0.4087]
[1726602312715,1.67101782,2349.7,2349.3,7.3868]
[1726602312902,1.67101782,2349.6,2349.4,0.54479727]
[1726602313204,1.67101782,2349.6,2349.2,3.7287]
[1726602313205,3.06957064,2349.6,2349.2,3.7287]
[1726602313406,1.6704942,2349.4,2349.3,0.54491094]
[1726602313599,1.6704942,2349.4,2349.3,0.42555]
[1726602313800,2.22757064,2349.5,2349.3,0.42555]
[1726602314005,2.22757064,2349.5,2349.2,0.4087]
[1726602314006,2.65308064,2349.5,2349.2,0.4087]
[1726602314308,1.67072973,2349.4,2349.0,3.63757164]
[1726602314502,1.67072973,2349.4,2349.1,0.97052965]
[1726602314803,1.67072973,2349.4,2349.1,0.42557]
[1726602315010,1.67072973,2349.3,2349.1,0.42557]
[1726602315202,1.67072973,2349.4,2349.1,0.42558]
[1726602315402,1.67072973,2349.4,2349.2,6.5278]
[1726602315709,3.62229201,2349.6,2349.5,0.42551]
[1726602315710,1.67072973,2349.6,2349.5,0.42551]
[1726602315907,1.67072973,2349.7,2349.2,3.2078]
[1726602316104,1.67072973,2349.7,2348.9,6.00546199]
[1726602316105,0.4128,2349.5,2348.9,8.11880936]
[1726602316306,0.4128,2349.5,2348.9,8.22111]
[1726602316307,1.67072973,2349.4,2348.9,8.22111]
[1726602316505,0.4061,2349.3,2348.9,8.22111]
[1726602316913,0.4061,2349.3,2349.0,0.4256]
[1726602317409,1.67072973,2349.2,2348.5,7.3868]
[1726602317713,1.67072973,2349.2,2348.6,0.60633545]
[1726602317913,1.67072973,2349.1,2348.8,3.2078]
[1726602318212,1.67072973,2349.2,2348.6,0.60387122]
[1726602318511,1.67072973,2349.2,2348.8,3.2078]
[1726602318717,1.67072973,2349.2,2348.8,3.63342]
[1726602319105,5.28462973,2349.3,2348.9,0.42562]
[1726602319409,5.28462973,2349.3,2348.9,0.42561]
[1726602319802,2.07682973,2349.3,2349.0,0.42559]
[1726602320209,0.4061,2349.3,2349.0,0.42559]
[1726602322308,0.4061,2349.3,2348.8,3.51992523]
[1726602322309,0.4133,2349.4,2348.8,3.51992523]
[1726602322514,0.4133,2349.4,2349.1,3.2078]
[1726602322720,2.45762973,2349.6,2349.3,0.42555]
[1726602322721,0.7869,2349.6,2349.3,0.42555]
[1726602323013,1.67072973,2349.8,2349.4,3.63332]
[1726602323014,0.83416,2349.8,2349.4,3.63332]
[1726602323218,0.82718,2349.7,2349.2,0.8413]
[1726602323520,0.82718,2349.7,2349.3,0.42553]
[1726602323521,0.4017,2349.7,2349.3,0.42553]
[1726602323714,0.4017,2349.7,2349.4,0.42553]
[1726602324023,0.4017,2349.7,2349.2,0.8413]
[1726602324215,0.4017,2349.7,2349.4,3.2078]
[1726602324421,0.4017,2349.7,2349.4,3.63332]
[1726602324714,0.82718,2349.7,2349.3,0.42555]
[1726602324906,0.42551,2349.6,2349.1,0.42558]
[1726602325105,0.42552,2349.5,2349.1,0.42558]
[1726602325305,0.3875,2349.5,2349.0,4.02879]
[1726602325504,0.81302,2349.5,2349.1,0.42558]
[1726602325812,0.81301,2349.5,2349.1,0.42558]
[1726602326011,0.81302,2349.5,2349.0,4.0288]
[1726602326419,0.42554,2349.4,2349.0,4.0288]
[1726602326614,0.81302,2349.5,2349.0,4.0288]
[1726602326913,0.3875,2349.5,2349.0,3.2078]
[1726602327214,0.3875,2349.5,2348.8,0.3936]
[1726602327215,3.63336,2349.3,2348.8,0.3936]
[1726602327418,1.23417,2349.2,2348.8,0.60270159]
[1726602327609,1.23417,2349.2,2348.8,0.81922]
[1726602327913,1.23418,2349.2,2348.8,0.81922]
[1726602328110,0.81089,2349.1,2348.7,0.83624]
[1726602328313,0.8109,2349.1,2348.7,0.83624]
[1726602328716,0.3853,2349.1,2348.7,0.4106]
[1726602328920,0.8086,2349.2,2348.7,3.6184]
[1726602329213,0.8086,2349.2,2348.7,0.4106]
[1726602329411,1.23418,2349.2,2348.8,0.42563]
[1726602330211,0.8086,2349.2,2348.9,0.42561]
[1726602330413,0.8086,2349.2,2348.7,3.6184]
[1726602330610,0.8086,2349.2,2349.1,0.42558]
[1726602330611,0.4121,2349.2,2349.1,0.42558]
[1726602330821,0.4237,2349.5,2349.2,0.42556]
[1726602331010,0.84922,2349.5,2349.2,0.42557]
[1726602331215,0.84922,2349.5,2349.1,1.24907]
[1726602331417,0.84922,2349.5,2349.2,0.42556]
[1726602331714,0.4237,2349.5,2349.3,0.42554]
[1726602331913,0.4099,2349.6,2349.4,0.42552]
[1726602332516,0.4099,2349.6,2349.4,0.42553]
[1726602332817,0.4099,2349.6,2349.3,0.42553]
[1726602333017,0.4099,2349.6,2349.4,0.42552]
[1726602333418,0.4099,2349.6,2349.1,1.14519386]
[1726602333723,0.4099,2349.6,2349.3,0.42553]
[1726602333909,0.4099,2349.6,2349.4,0.42553]
[1726602334819,0.4099,2349.6,2349.3,0.42554]
[1726602334820,0.8354,2349.6,2349.3,0.42554]
[1726602335213,0.42552,2349.5,2349.1,0.8235]
[1726602335408,0.4099,2349.6,2349.1,0.4073]
[1726602335612,0.42557,2349.2,2348.9,0.42561]
[1726602336016,0.42558,2349.2,2348.9,0.42561]
[1726602336318,0.4204,2349.1,2348.9,0.42561]
[1726602337114,0.4204,2349.1,2349.0,0.4256]
[1726602337910,1.19686,2349.3,2349.1,0.42558]
[1726602337911,0.7713,2349.3,2349.1,0.42558]
[1726602338217,0.7713,2349.3,2348.8,1.84629]
[1726602338415,0.84594,2349.4,2348.8,1.84629]
[1726602338416,0.84594,2349.4,2349.1,0.42558]
[1726602338617,0.84594,2349.4,2348.8,1.84629]
[1726602338618,0.4204,2349.4,2349.2,0.3942]
[1726602338817,0.84593,2349.4,2349.2,0.3942]
[1726602340019,5.43537064,2349.7,2349.2,0.3942]
[1726602340020,3.63329,2349.7,2349.4,0.42552]
[1726602340322,3.2078,2349.7,2349.3,3.6287]
[1726602340618,3.2078,2349.7,2349.4,0.42551]
[1726602340822,3.2078,2349.7,2349.5,0.42551]
[1726602341009,3.2078,2349.7,2349.3,0.4209]
[1726602341214,3.63328,2349.7,2349.4,0.42552]
[1726602341718,3.63328,2349.7,2349.2,0.3942]
[1726602341719,1.06375,2349.6,2349.2,0.3942]
[1726602341920,0.3919,2349.5,2349.2,0.3942]
[1726602342121,0.3919,2349.5,2348.8,1.48498]
[1726602342122,4.27163,2349.4,2349.0,0.4256]
[1726602342421,0.42559,2349.1,2348.8,1.24303]
[1726602342723,0.42561,2349.0,2348.8,0.3965]
[1726602342912,4.6542,2349.0,2348.7,0.42565]
[1726602343116,4.6542,2349.0,2347.9,1.29863889]
[1726602343117,0.42569,2348.6,2348.0,0.42577]
[1726602343318,0.42572,2348.4,2348.0,0.3888]
[1726602343512,2.84840785,2348.5,2348.0,3.5966]
[1726602343817,0.3966,2348.5,2348.1,3.2078]
[1726602344010,0.3966,2348.5,2348.2,0.42574]
[1726602344211,0.3966,2348.5,2348.0,0.3888]
[1726602344410,3.63352,2348.4,2348.0,0.3888]
[1726602344918,0.42574,2348.3,2347.8,0.3965]
[1726602345118,3.2078,2348.4,2347.8,0.3965]
[1726602345119,0.42575,2348.2,2347.8,0.3965]
[1726602345312,0.42575,2348.2,2347.7,0.4205]
[1726602345313,0.42576,2348.2,2347.7,0.4205]
[1726602345510,5.75340785,2348.3,2347.5,3.2078]
[1726602345718,3.63358,2348.1,2347.5,3.63367]
[1726602346018,3.63358,2348.1,2347.5,3.2078]
[1726602346019,0.82589,2348.0,2347.5,3.2078]
[1726602346219,0.4114,2347.9,2347.5,3.63367]
[1726602346422,0.4114,2347.9,2347.5,3.2078]
[1726602347722,0.8372,2347.9,2347.5,3.2078]
[1726602347923,0.4114,2347.9,2347.5,3.2078]
[1726602348326,0.8372,2347.9,2347.5,3.2078]
[1726602348525,0.4114,2347.9,2347.5,3.2078]
[1726602349319,0.42584,2347.7,2347.2,0.3881]
[1726602349520,0.4114,2347.9,2347.3,0.4259]
[1726602349521,3.63364,2347.8,2347.3,0.4259]
[1726602349834,3.63363,2347.8,2347.2,0.3881]
[1726602350029,3.2078,2347.8,2347.2,0.3881]
[1726602350230,0.42587,2347.6,2347.1,0.84643]
[1726602350421,0.42587,2347.6,2347.2,0.42593]
[1726602350627,0.42587,2347.6,2347.1,0.4205]
[1726602350927,7.2978,2347.8,2347.1,0.4205]
[1726602351119,0.42588,2347.5,2347.1,0.84644]
[1726602351630,3.2078,2347.8,2347.1,0.4205]
[1726602351828,3.63363,2347.8,2347.4,0.42588]
[1726602352226,3.63363,2347.8,2347.3,3.2078]
[1726602352227,0.42584,2347.7,2347.3,0.4259]
[1726602352432,3.2078,2347.8,2347.3,0.4259]
[1726602352635,0.42585,2347.7,2347.3,0.4259]
[1726602352827,0.42585,2347.7,2347.2,0.3856]
[1726602352828,0.42585,2347.7,2347.4,0.42589]
[1726602353024,0.42586,2347.6,2347.3,0.4259]
[1726602353425,3.63363,2347.8,2347.5,0.42587]
[1726602353623,3.63363,2347.8,2347.2,0.3856]
[1726602353624,3.2078,2347.8,2347.6,0.42584]
[1726602353833,0.42585,2347.7,2347.4,0.42588]
[1726602354040,3.2078,2347.8,2347.3,3.2078]
[1726602354247,0.42584,2347.7,2347.4,0.42589]
[1726602354434,0.42588,2347.5,2347.2,0.42592]
[1726602354637,0.42589,2347.4,2347.1,0.4205]
[1726602354844,1.06463,2347.7,2347.2,0.42592]
[1726602355240,0.42589,2347.5,2347.2,0.42592]
[1726602355441,0.3959,2347.4,2347.2,0.42592]
[1726602355746,5.0818,2347.4,2347.2,0.42592]
[1726602355945,4.26,2347.3,2347.2,0.42592]
[1726602356147,4.26,2347.3,2347.0,3.2078]
[1726602356339,8.3508,2347.2,2346.0,3.2078]
[1726602356539,8.3508,2347.2,2346.0,0.8076]
[1726602356540,3.2078,2346.7,2346.0,0.8076]
[1726602356742,7.2978,2347.0,2346.0,0.8076]
[1726602356948,4.27293,2346.6,2345.9,3.2078]
[1726602357148,0.4259,2346.5,2345.9,3.2078]
[1726602357355,3.2078,2346.6,2345.9,1.06542]
[1726602357649,3.2078,2346.6,2346.0,3.2078]
[1726602358051,0.3959,2346.7,2346.4,0.42607]
[1726602358250,0.42606,2346.5,2346.3,0.42608]
[1726602358448,0.42606,2346.5,2346.2,0.4261]
[1726602358947,0.42609,2346.4,2345.6,5.06672]
[1726602359248,0.4261,2346.3,2346.0,0.42613]
[1726602359441,3.2078,2346.5,2345.6,4.0012]
[1726602359641,0.4261,2346.3,2346.0,0.42614]
[1726602359855,3.2078,2346.5,2345.9,0.42615]
[1726602360151,1.06519,2346.4,2345.6,4.0012]
[1726602360345,0.42612,2346.2,2345.9,0.42616]
[1726602360648,0.42617,2345.9,2345.6,0.82631]
[1726602360846,0.4111,2346.1,2345.6,0.4001]
[1726602361047,0.4111,2346.1,2345.2,3.2078]
[1726602361048,3.2078,2345.8,2345.2,3.2078]
[1726602361243,5.0866,2346.1,2345.2,3.2078]
[1726602361244,4.032,2346.1,2345.2,3.2078]
[1726602361451,5.15542,2345.9,2345.4,0.42625]
[1726602361643,3.2078,2345.5,2344.1,3.2078]
[1726602361843,3.2078,2345.5,2344.6,1.06598]
[1726602361844,0.4111,2345.4,2344.6,1.06598]
[1726602362046,0.4111,2345.4,2344.8,3.2078]
[1726602362245,4.09,2345.2,2344.5,3.2078]
[1726602362442,4.09,2345.2,2344.6,1.06601]
[1726602362645,4.09,2345.2,2344.9,0.42634]
[1726602362850,0.4111,2345.4,2344.5,3.41866199]
[1726602363061,4.5011,2345.4,2344.7,1.06596]
[1726602363259,4.5011,2345.4,2344.6,1.066]
[1726602363459,4.5011,2345.4,2345.1,0.4263]
[1726602363754,4.5011,2345.4,2344.7,1.06596]
[1726602363958,4.5011,2345.4,2344.5,3.41866199]
[1726602363959,4.09,2346.0,2345.1,3.2078]
[1726602364145,3.6209,2346.1,2344.6,4.09]
[1726602364146,3.2078,2346.1,2345.9,0.42616]
[1726602364351,3.2078,2346.1,2345.4,3.2078]
[1726602364543,3.2078,2346.1,2345.4,4.27342]
[1726602364749,3.2078,2346.1,2345.7,3.2078]
[1726602365055,3.63394,2346.1,2345.6,0.42621]
[1726602365247,4.09,2346.0,2345.3,3.63]
[1726602365548,3.2078,2346.1,2345.3,3.63]
[1726602366051,3.2078,2346.1,2345.8,0.42617]
[1726602366253,3.2078,2346.5,2346.3,0.42608]
[1726602366455,3.2078,2346.8,2346.4,0.42607]
[1726602366651,7.2978,2346.8,2346.4,0.42607]
[1726602366960,0.42609,2346.4,2346.2,0.4083]
[1726602367252,3.2078,2346.5,2346.2,0.4083]
[1726602367453,3.2078,2346.5,2346.3,0.42608]
[1726602367656,3.2078,2346.5,2345.9,0.4208]
[1726602367849,4.09,2346.6,2346.3,0.42608]
[1726602368048,4.09,2346.6,2346.2,0.4261]
[1726602368255,4.09,2346.6,2346.0,0.4083]
[1726602368458,4.51604,2346.6,2346.1,0.42611]
[1726602368658,7.2978,2346.6,2346.0,0.4083]
[1726602368854,0.4155,2346.9,2345.9,0.4208]
[1726602368855,7.2978,2346.3,2345.9,0.4208]
[1726602369158,7.2978,2346.3,2345.5,3.6224]
[1726602369346,7.72396,2346.0,2345.5,3.2078]
[1726602369548,7.2978,2346.0,2345.5,3.2078]
[1726602369751,7.2978,2345.7,2345.3,0.4207]
[1726602369948,0.42627,2345.3,2345.0,3.2078]
[1726602370156,4.09,2345.4,2344.6,0.4069]
[1726602370157,4.51632,2345.1,2344.6,1.25399]
[1726602370454,4.09,2345.1,2344.8,0.42636]
[1726602370654,3.2078,2345.5,2344.7,0.42638]
[1726602370864,4.09,2345.4,2344.6,0.8276]
[1726602371065,0.4263,2345.2,2344.6,0.8276]
[1726602371261,3.2078,2345.5,2344.7,3.2078]
[1726602371262,7.2978,2345.5,2344.7,3.2078]
[1726602371565,7.2978,2345.5,2345.0,3.2078]
[1726602371566,3.2078,2345.5,2345.0,3.2078]
[1726602371755,3.2078,2345.5,2345.2,0.42629]
[1726602372059,3.2078,2345.5,2345.0,3.2078]
[1726602372264,4.09,2345.8,2345.0,3.2078]
[1726602372461,4.09,2345.8,2345.3,0.42626]
[1726602372654,4.09,2345.8,2345.0,3.2078]
[1726602372852,4.09,2345.8,2345.3,0.42627]
[1726602373051,4.09,2345.8,2345.4,0.42624]
[1726602373358,0.4029,2346.0,2345.3,3.2078]
[1726602373561,0.82905,2346.0,2345.5,0.42624]
[1726602373758,0.82905,2346.0,2345.4,0.7915]
[1726602373959,0.4029,2346.0,2345.4,0.7915]
[1726602374154,3.63397,2345.9,2345.4,1.21775]
[1726602375058,4.09,2345.8,2345.4,0.7915]
[1726602375455,4.09,2345.8,2345.0,3.2078]
[1726602375456,3.63402,2345.6,2345.0,3.2078]
[1726602375660,0.42624,2345.5,2345.0,3.2078]
[1726602375862,3.2078,2345.7,2345.0,3.2078]
[1726602376057,0.42622,2345.6,2345.1,0.42629]
[1726602376366,4.09,2345.6,2345.0,3.63412]
[1726602376663,3.2078,2345.1,2344.8,0.42635]
[1726602376868,3.2078,2345.1,2344.6,3.63419]
[1726602376869,0.42633,2345.0,2344.6,3.63419]
[1726602377055,3.63412,2345.1,2344.7,0.42638]
[1726602377257,3.2078,2345.1,2344.7,0.42638]
[1726602377565,3.2078,2345.1,2344.6,3.2078]
[1726602377755,0.42636,2344.8,2344.6,3.2078]
[1726602378063,4.27375,2344.8,2343.8,0.3981]
[1726602378253,4.27375,2344.8,2343.3,3.2078]
[1726602378254,4.09,2343.9,2343.3,3.2078]
[1726602378454,3.2078,2344.2,2343.2,3.2078]
[1726602378455,0.42656,2343.7,2343.2,3.2078]
[1726602378758,3.2078,2343.8,2343.2,3.2078]
[1726602378960,3.2078,2343.8,2343.4,0.42661]
[1726602379166,3.2078,2343.8,2343.3,0.4245]
[1726602379167,3.2078,2343.8,2343.3,0.85114]
[1726602379356,3.2078,2343.8,2343.3,0.4245]
[1726602379557,3.2078,2343.8,2343.4,0.42661]
[1726602380061,3.2078,2343.8,2343.5,0.4266]
[1726602380266,3.2078,2343.8,2343.3,0.4245]
[1726602380660,3.2078,2344.3,2343.6,0.42656]
[1726602380859,3.2078,2344.3,2343.6,0.414]
[1726602381054,0.4148,2344.6,2344.0,0.4265]
[1726602381255,3.2078,2345.1,2344.1,3.2078]
[1726602381555,3.2078,2345.1,2344.3,0.42644]
[1726602381763,3.2078,2345.1,2344.4,0.402]
[1726602381965,3.2078,2345.1,2344.4,0.82844]
[1726602382161,3.2078,2345.1,2344.4,0.402]
[1726602382368,3.2078,2345.1,2344.4,1.25073]
[1726602382664,3.2078,2345.1,2344.5,3.2078]
[1726602383256,3.2078,2345.1,2344.6,0.42639]
[1726602383456,3.2078,2345.1,2344.5,3.2078]
[1726602383654,3.2078,2345.1,2344.4,0.8243]
[1726602383869,3.2078,2344.8,2344.4,0.8243]
[1726602384060,3.2078,2345.1,2344.5,3.63421]
[1726602384261,3.2078,2345.1,2344.5,3.2078]
[1726602384459,3.2078,2345.1,2344.6,0.42639]
[1726602384659,3.2078,2345.1,2344.5,3.2078]
[1726602385060,3.2078,2345.1,2344.4,1.25072]
[1726602385267,3.2078,2345.1,2344.6,0.42639]
[1726602385474,3.2078,2345.1,2344.5,3.63421]
[1726602385767,3.2078,2345.1,2344.5,3.2078]
[1726602385965,0.42639,2344.7,2344.0,0.4265]
[1726602386170,4.61,2344.9,2343.7,3.2078]